fUST/lending_fUST_20260622
["ID","MTS","AMOUNT","RATE_DAILY","PERIOD"]
[426087793,1782141038000,-500.0,0.00011498,2]
[426087796,1782141038000,-500.0,0.00011498,2]
[426087802,1782141038000,-500.0,0.00011498,2]
[426087784,1782141038000,-500.0,0.00011498,2]
[426087781,1782141038000,-297.32835817,0.00011498,2]
[426087791,1782141038000,-500.0,0.00011498,2]
[426087782,1782141038000,-500.0,0.00011498,2]
[426087777,1782141038000,-1631.64524447,0.0001027,2]
[426087806,1782141038000,-500.0,0.00011498,2]
[426087788,1782141038000,-500.0,0.00011498,2]
[426087798,1782141038000,-500.0,0.00011498,2]
[426087779,1782141038000,-1350.3004215,0.0001027,2]
[426087795,1782141038000,-500.0,0.00011498,2]
[426087804,1782141038000,-255.40213258,0.00011498,2]
[426087810,1782141038000,-500.0,0.00011498,2]
[426087814,1782141038000,-500.0,0.00011498,2]
[426087812,1782141038000,-500.0,0.00011498,2]
[426087816,1782141038000,-300.0,0.00011498,2]
[426087808,1782141038000,-500.0,0.00011498,2]
[426087817,1782141038000,-2866.0870944,0.00011498,2]
[426087824,1782141038000,-251.73661241,0.000118,5]
[426087820,1782141038000,-6332.18010118,0.000115,2]
[426087822,1782141038000,-16486.7703945,0.000115,2]
[426087826,1782141038000,-1584.50228954,0.00012,2]
[426087800,1782141038000,-500.0,0.00011498,2]
[426088020,1782141040000,-363.21226428,0.00012,2]
[426088022,1782141040000,-309.63440206,0.00012,2]
[426088057,1782141041000,-994.49949227,0.00012,2]
[426088059,1782141041000,-256.7343675,0.0001309,5]
[426088061,1782141041000,-591.17603456,0.00013699,2]
[426088401,1782141044000,-663.74917569,0.00010167,2]
[426088403,1782141044000,-408.82396544,0.00013699,2]
[426088405,1782141044000,-20.78177766,0.00013906,7]
[426088818,1782141047000,-234.55804282,0.00016712,2]
[426088822,1782141047000,-500.0,0.0001698,2]
[426088820,1782141047000,-500.0,0.0001698,2]
[426088807,1782141047000,-151.5,0.00016712,2]
[426088809,1782141047000,-151.5,0.00016712,2]
[426088801,1782141047000,-270.3253308,0.00016712,2]
[426088803,1782141047000,-2027.32,0.00016712,2]
[426088798,1782141047000,-500.0,0.00016706,2]
[426088790,1782141047000,-500.0,0.00016438,2]
[426088796,1782141047000,-500.0,0.00016706,2]
[426088792,1782141047000,-500.0,0.00016438,2]
[426088805,1782141047000,-500.0,0.00016712,2]
[426088800,1782141047000,-500.0,0.00016706,2]
[426088837,1782141047000,-188.9229638,0.00017119,2]
[426088816,1782141047000,-151.5,0.00016712,2]
[426088814,1782141047000,-151.5,0.00016712,2]
[426088827,1782141047000,-338.40745927,0.00016986,2]
[426088826,1782141047000,-151.38788146,0.00016986,2]
[426088829,1782141047000,-272.49818662,0.00016986,2]
[426088831,1782141047000,-2027.32,0.00016986,2]
[426088824,1782141047000,-583.5,0.0001698,2]
[426088833,1782141047000,-500.0,0.00016986,2]
[426088794,1782141047000,-500.0,0.00016706,2]
[426088841,1782141047000,-200.31792656,0.0001716,2]
[426088844,1782141047000,-500.0,0.00017254,2]
[426088835,1782141047000,-600.0,0.0001704,2]
[426088839,1782141047000,-1129.6826944,0.00017119,2]
[426088811,1782141047000,-151.5,0.00016712,2]
[426088786,1782141047000,-500.0,0.00016438,2]
[426088766,1782141047000,-500.0,0.00016438,2]
[426088781,1782141047000,-532.78595545,0.00016438,2]
[426088842,1782141047000,-585.5,0.00017254,2]
[426088741,1782141047000,-169.0,0.00015876,2]
[426088743,1782141047000,-534.33128021,0.00016438,2]
[426088740,1782141047000,-347.23298875,0.00014724,7]
[426088745,1782141047000,-530.70182935,0.00016438,2]
[426088735,1782141047000,-1118.92977452,0.00014669,2]
[426088747,1782141047000,-500.0,0.00016438,2]
[426088737,1782141047000,-5017.73188898,0.00014669,2]
[426088734,1782141047000,-210.70688148,0.00013906,7]
[426088751,1782141047000,-500.0,0.00016438,2]
[426088753,1782141047000,-500.0,0.00016438,2]
[426088761,1782141047000,-500.0,0.00016438,2]
[426088749,1782141047000,-500.0,0.00016438,2]
[426088755,1782141047000,-214.72708415,0.00016438,2]
[426088757,1782141047000,-500.0,0.00016438,2]
[426088768,1782141047000,-2027.32,0.00016438,2]
[426088759,1782141047000,-500.0,0.00016438,2]
[426088764,1782141047000,-500.0,0.00016438,2]
[426088763,1782141047000,-500.0,0.00016438,2]
[426088770,1782141047000,-500.0,0.00016438,2]
[426088772,1782141047000,-500.0,0.00016438,2]
[426088773,1782141047000,-500.0,0.00016438,2]
[426088775,1782141047000,-632.41315444,0.00016438,2]
[426088785,1782141047000,-500.0,0.00016438,2]
[426088777,1782141047000,-500.0,0.00016438,2]
[426088779,1782141047000,-500.0,0.00016438,2]
[426088783,1782141047000,-500.0,0.00016438,2]
[426088788,1782141047000,-549.85481914,0.00016438,2]
[426088846,1782141047000,-2027.32,0.0001726,2]
[426088925,1782141047000,-1419.0,0.00019204,2]
[426088852,1782141047000,-2027.32,0.00017534,2]
[426088914,1782141047000,-1000.0,0.00019176,2]
[426088915,1782141047000,-1000.0,0.00019176,2]
[426088927,1782141047000,-958.0,0.00019204,2]
[426088964,1782141047000,-2027.32,0.0002,2]
[426088918,1782141047000,-300.0,0.00019178,2]
[426088921,1782141047000,-500.0,0.00019178,2]
[426088919,1782141047000,-2027.32,0.00019178,2]
[426088916,1782141047000,-1000.0,0.00019176,2]
[426088929,1782141047000,-1842.0,0.00019204,2]
[426088923,1782141047000,-198.15,0.00019178,2]
[426088931,1782141047000,-208.08902596,0.00019212,2]
[426088936,1782141047000,-2027.32,0.00019452,2]
[426088938,1782141047000,-500.0,0.00019452,2]
[426088934,1782141047000,-573.51,0.00019446,2]
[426088933,1782141047000,-151.00000001,0.00019212,2]
[426088940,1782141047000,-150.8,0.00019521,2]
[426088942,1782141047000,-2027.32,0.00019726,2]
[426088944,1782141047000,-505.06,0.00019726,2]
[426088958,1782141047000,-160.0,0.00019944,2]
[426088946,1782141047000,-208.08902596,0.0001976,2]
[426088948,1782141047000,-187.23280512,0.00019813,2]
[426088954,1782141047000,-160.0,0.00019944,2]
[426088960,1782141047000,-256.0,0.0002,2]
[426088952,1782141047000,-200.80336115,0.000199,2]
[426088956,1782141047000,-417.15472785,0.00019944,2]
[426088962,1782141047000,-39161.79900768,0.0002,2]
[426088848,1782141047000,-500.0,0.0001726,2]
[426088910,1782141047000,-1000.0,0.00019176,2]
[426088912,1782141047000,-1000.0,0.00019176,2]
[426088950,1782141047000,-184.73359835,0.000199,2]
[426088902,1782141047000,-500.0,0.00018904,2]
[426088858,1782141047000,-166.0,0.00017808,2]
[426088856,1782141047000,-500.0,0.00017802,2]
[426088854,1782141047000,-500.0,0.00017534,2]
[426088866,1782141047000,-158.3,0.00017808,2]
[426088860,1782141047000,-156.0,0.00017808,2]
[426088850,1782141047000,-500.0,0.00017528,2]
[426088864,1782141047000,-500.0,0.00017808,2]
[426088862,1782141047000,-2027.32,0.00017808,2]
[426088868,1782141047000,-197.78693661,0.00018044,7]
[426088884,1782141047000,-264.79315167,0.00018517,2]
[426088876,1782141047000,-500.0,0.0001835,2]
[426088887,1782141047000,-2027.32,0.0001863,2]
[426088891,1782141047000,-483.95677944,0.00018656,2]
[426088870,1782141047000,-500.0,0.00018076,2]
[426088878,1782141047000,-2027.32,0.00018356,2]
[426088906,1782141047000,-1000.0,0.00019176,2]
[426088900,1782141047000,-2027.32,0.00018904,2]
[426088872,1782141047000,-2027.32,0.00018082,2]
[426088898,1782141047000,-500.0,0.00018898,2]
[426088896,1782141047000,-193.518,0.00018775,2]
[426088894,1782141047000,-720.0,0.00018744,2]
[426088904,1782141047000,-500.0,0.00019172,2]
[426088886,1782141047000,-500.0,0.00018624,2]
[426088879,1782141047000,-500.0,0.00018356,2]
[426088893,1782141047000,-339.6907696,0.00018656,2]
[426088874,1782141047000,-500.0,0.00018082,2]
[426088882,1782141047000,-162.0,0.00018493,3]
[426088889,1782141047000,-500.0,0.0001863,2]
[426088908,1782141047000,-1000.0,0.00019176,2]
[426088976,1782141048000,-200.80336115,0.000203,2]
[426088968,1782141048000,-200.80336115,0.000201,2]
[426088966,1782141048000,-184.73359835,0.000201,2]
[426088974,1782141048000,-184.73359835,0.000203,2]
[426088978,1782141048000,-182.99333393,0.00020301,2]
[426088982,1782141048000,-2027.32,0.00020547,2]
[426088972,1782141048000,-2027.32,0.00020273,2]
[426088970,1782141048000,-374.46561023,0.00020157,2]
[426088980,1782141048000,-208.08902596,0.00020308,2]
[426088986,1782141048000,-162.36,0.00020635,2]
[426088988,1782141048000,-1000.0,0.0002082,2]
[426089000,1782141048000,-204.661275,0.00020913,2]
[426088993,1782141048000,-1758.26856473,0.00020821,2]
[426088997,1782141048000,-208.08902596,0.00020856,2]
[426088984,1782141048000,-864.0,0.00020619,2]
[426088995,1782141048000,-186.273706,0.00020834,2]
[426088990,1782141048000,-269.05143527,0.00020821,2]
[426089002,1782141048000,-2312.52274429,0.00021,2]
[426088998,1782141048000,-180.0,0.000209,2]
[426089535,1782141307000,192.0,0.00019899,120]
[426089536,1782141308000,192.0,0.00020894,120]
[426089537,1782141310000,192.0,0.00021939,120]
[426089539,1782141332000,167.0,0.00018966,120]
[426089540,1782141335000,167.0,0.00019914,120]
[426089541,1782141336000,167.0,0.0002091,120]
[426089619,1782142239000,-907.36522139,0.00011756,2]
[426089613,1782142239000,-295.58151682,0.00011043,7]
[426089617,1782142239000,-443.37227524,0.00011692,7]
[426089615,1782142239000,-285.21233772,0.00011638,2]
[426089621,1782142239000,-283.3844458,0.00017655,2]
[426089624,1782142239000,-191.17284386,0.00017808,2]
[426089626,1782142239000,-148.03682707,0.00017808,2]
[426089625,1782142239000,-343.76700782,0.00017808,2]
[426089623,1782142239000,-188.9229638,0.00017655,2]
[426089676,1782142241000,-50.72467745,0.000198,5]
[426089678,1782142241000,-114.27532255,0.000198,5]
[426089680,1782142241000,-160.0,0.00019927,2]
[426089682,1782142241000,-160.0,0.00019927,2]
[426089674,1782142241000,-162.0,0.000198,7]
[426089672,1782142241000,-591.3,0.00019725,2]
[426089660,1782142241000,-166.89469511,0.00017945,2]
[426089658,1782142241000,-145.22237332,0.00017808,2]
[426089662,1782142241000,-160.0,0.00018521,3]
[426089668,1782142241000,-75.69289386,0.00018954,2]
[426089666,1782142241000,-924.30710614,0.00018954,2]
[426089664,1782142241000,-166.3153537,0.00018537,2]
[426089670,1782142241000,-591.3,0.00019451,2]
[426089684,1782142241000,-417.15472785,0.00019927,2]
[426089694,1782142241000,-95.4050504,0.0002,15]
[426089687,1782142241000,-591.3,0.00019999,2]
[426089689,1782142241000,-244.0,0.0002,2]
[426089714,1782142241000,-268.83922238,0.00020821,2]
[426089712,1782142241000,-166.47122077,0.00020607,2]
[426089708,1782142241000,-266.61044315,0.00020547,2]
[426089706,1782142241000,-591.3,0.00020273,2]
[426089702,1782142241000,-162.0,0.000201,20]
[426089710,1782142241000,-324.68955685,0.00020547,2]
[426089696,1782142241000,-162.0,0.0002,10]
[426089700,1782142241000,-64.37527113,0.00020059,2]
[426089698,1782142241000,-102.09594964,0.00020059,2]
[426089691,1782142241000,-66.5949496,0.0002,15]
[426089685,1782142241000,-154.815,0.00019998,2]
[426089704,1782142241000,-500.0,0.00020272,2]
[426089755,1782142243000,-591.3,0.00021643,2]
[426089748,1782142243000,-591.3,0.00021095,2]
[426089754,1782142243000,-244.0,0.00021448,30]
[426089751,1782142243000,-591.3,0.00021369,2]
[426089746,1782142243000,-582.16401996,0.00021,2]
[426089749,1782142243000,-166.47122077,0.00021155,2]
[426089747,1782142243000,-244.0,0.00021,2]
[426089744,1782142243000,-322.46077762,0.00020821,2]
[426089753,1782142243000,-158.0,0.00021448,30]
[426089750,1782142243000,-1000.0,0.00021284,2]
[426089752,1782142243000,-154.0,0.00021446,30]
[426089745,1782142243000,-105.31323575,0.00021,2]
[426089762,1782142243000,-326.44573966,0.00021695,2]
[426089756,1782142243000,-500.0,0.00021694,2]
[426089766,1782142243000,-807.80413973,0.00021695,2]
[426089767,1782142243000,-1882.75946443,0.00021695,2]
[426089757,1782142243000,-440.14190678,0.00021694,2]
[426089763,1782142243000,-1882.75946443,0.00021695,2]
[426089768,1782142243000,-1882.75946443,0.00021695,2]
[426089764,1782142243000,-1882.75946443,0.00021695,2]
[426089765,1782142243000,-1074.9553247,0.00021695,2]
[426089761,1782142243000,-500.0,0.00021694,2]
[426089760,1782142243000,-305.54021326,0.00021694,2]
[426089758,1782142243000,-451.92913252,0.00021694,2]
[426089759,1782142243000,-48.07086748,0.00021694,2]
[426089771,1782142244000,-532.80835592,0.00021695,2]
[426089770,1782142244000,-584.74596316,0.00021695,2]
[426089769,1782142244000,-1882.75946443,0.00021695,2]
[426089775,1782142247000,-1882.75946443,0.00021695,2]
[426089774,1782142247000,-765.20514535,0.00021695,2]
[426089776,1782142247000,-1882.75946443,0.00021695,2]
[426089778,1782142247000,-1274.22272234,0.00021695,2]
[426089777,1782142247000,-1882.75946443,0.00021695,2]
[426089782,1782142329000,-500.0,0.00019451,2]
[426090027,1782143439000,-500.0,0.0002027,2]
[426090017,1782143439000,-500.0,0.0002027,2]
[426090011,1782143439000,-500.0,0.0002027,2]
[426090013,1782143439000,-500.0,0.0002027,2]
[426090015,1782143439000,-500.0,0.0002027,2]
[426090000,1782143439000,-500.0,0.0002027,2]
[426090023,1782143439000,-200.61557925,0.0002027,2]
[426090025,1782143439000,-155.88291597,0.0002027,2]
[426090031,1782143439000,-154.92605707,0.0002027,2]
[426090029,1782143439000,-219.99,0.0002027,2]
[426090033,1782143439000,-500.0,0.0002027,2]
[426090054,1782143439000,-500.0,0.0002027,2]
[426090037,1782143439000,-500.0,0.0002027,2]
[426090042,1782143439000,-500.0,0.0002027,2]
[426090044,1782143439000,-500.0,0.0002027,2]
[426090049,1782143439000,-500.0,0.0002027,2]
[426090051,1782143439000,-500.0,0.0002027,2]
[426090053,1782143439000,-500.0,0.0002027,2]
[426090059,1782143439000,-500.0,0.0002027,2]
[426090061,1782143439000,-500.0,0.0002027,2]
[426090064,1782143439000,-500.0,0.0002027,2]
[426090066,1782143439000,-635.0605203,0.0002027,2]
[426090021,1782143439000,-500.0,0.0002027,2]
[426090035,1782143439000,-2717.0635,0.0002027,2]
[426090019,1782143439000,-500.0,0.0002027,2]
[426089972,1782143439000,-316.72218415,0.000198,5]
[426090007,1782143439000,-500.0,0.0002027,2]
[426089960,1782143439000,-193.9,0.000179,2]
[426089963,1782143439000,-193.9,0.000189,2]
[426089968,1782143439000,-499.8243132,0.00019725,2]
[426089964,1782143439000,-1000.0,0.00019139,2]
[426089966,1782143439000,-500.0,0.00019451,2]
[426089970,1782143439000,-429.32539173,0.000198,5]
[426089976,1782143439000,-1703.97191452,0.000199,2]
[426089974,1782143439000,-163.97880347,0.000199,2]
[426090057,1782143439000,-500.0,0.0002027,2]
[426089978,1782143439000,-193.9,0.000199,2]
[426089986,1782143439000,-207.0,0.0002,2]
[426089980,1782143439000,-151.5,0.00019998,2]
[426089984,1782143439000,-167.84497261,0.00019998,2]
[426089982,1782143439000,-151.5,0.00019998,2]
[426089988,1782143439000,-163.97880347,0.000201,2]
[426089994,1782143439000,-157.22281961,0.0002026,2]
[426089990,1782143439000,-1703.97191452,0.000201,2]
[426089992,1782143439000,-2846.69267774,0.00020171,2]
[426089996,1782143439000,-162.380719,0.0002026,2]
[426089998,1782143439000,-452.2537568,0.0002027,2]
[426090002,1782143439000,-533.83711754,0.0002027,2]
[426090006,1782143439000,-500.0,0.0002027,2]
[426090004,1782143439000,-500.0,0.0002027,2]
[426090009,1782143439000,-645.26053757,0.0002027,2]
[426090062,1782143439000,-500.0,0.0002027,2]
[426090157,1782143439000,-500.0,0.00020544,2]
[426090080,1782143439000,-500.0,0.00020271,2]
[426090120,1782143439000,-242.12286525,0.00020445,2]
[426090124,1782143439000,-1703.97191452,0.000205,2]
[426090128,1782143439000,-242.66262596,0.00020523,2]
[426090130,1782143439000,-179.01721721,0.00020523,2]
[426090138,1782143439000,-500.0,0.00020544,2]
[426090132,1782143439000,-436.79272673,0.00020523,2]
[426090136,1782143439000,-500.0,0.00020544,2]
[426090134,1782143439000,-322.23099098,0.00020523,2]
[426090151,1782143439000,-500.0,0.00020544,2]
[426090154,1782143439000,-500.0,0.00020544,2]
[426090144,1782143439000,-500.0,0.00020544,2]
[426090155,1782143439000,-500.0,0.00020544,2]
[426090140,1782143439000,-500.0,0.00020544,2]
[426090159,1782143439000,-500.0,0.00020544,2]
[426090146,1782143439000,-362.15780029,0.00020544,2]
[426090150,1782143439000,-500.0,0.00020544,2]
[426090147,1782143439000,-500.0,0.00020544,2]
[426090163,1782143439000,-500.0,0.00020544,2]
[426090161,1782143439000,-500.0,0.00020544,2]
[426090165,1782143439000,-500.0,0.00020544,2]
[426090169,1782143439000,-500.0,0.00020544,2]
[426090167,1782143439000,-500.0,0.00020544,2]
[426090047,1782143439000,-500.0,0.0002027,2]
[426090126,1782143439000,-195.75,0.000205,2]
[426090122,1782143439000,-163.97880347,0.000205,2]
[426090142,1782143439000,-500.0,0.00020544,2]
[426090116,1782143439000,-163.97880347,0.000203,2]
[426090118,1782143439000,-1703.97191452,0.000203,2]
[426090082,1782143439000,-500.0,0.00020271,2]
[426090086,1782143439000,-500.0,0.00020271,2]
[426090084,1782143439000,-500.0,0.00020271,2]
[426090074,1782143439000,-500.0,0.00020271,2]
[426090078,1782143439000,-500.0,0.00020271,2]
[426090076,1782143439000,-500.0,0.00020271,2]
[426090070,1782143439000,-500.0,0.00020271,2]
[426090068,1782143439000,-500.0,0.00020271,2]
[426090088,1782143439000,-500.0,0.00020271,2]
[426090090,1782143439000,-500.0,0.00020271,2]
[426090092,1782143439000,-945.07,0.00020271,2]
[426090072,1782143439000,-500.0,0.00020271,2]
[426090094,1782143439000,-500.0,0.00020271,2]
[426090099,1782143439000,-160.0,0.00020272,2]
[426090096,1782143439000,-160.0,0.00020272,2]
[426090101,1782143439000,-417.15472785,0.00020272,2]
[426090103,1782143439000,-500.0,0.00020272,2]
[426090109,1782143439000,-500.0,0.00020272,2]
[426090107,1782143439000,-500.0,0.00020272,2]
[426090114,1782143439000,-171.87,0.00020272,2]
[426090105,1782143439000,-546.48,0.00020272,2]
[426090110,1782143439000,-500.0,0.00020272,2]
[426090112,1782143439000,-500.0,0.00020272,2]
[426090238,1782143440000,-1681.74129076,0.00020799,2]
[426090232,1782143440000,-1681.74129076,0.00020799,2]
[426090231,1782143440000,-1681.74129076,0.00020799,2]
[426090230,1782143440000,-1681.74129076,0.00020799,2]
[426090235,1782143440000,-1681.74129076,0.00020799,2]
[426090224,1782143440000,-1681.74129076,0.00020799,2]
[426090229,1782143440000,-1681.74129076,0.00020799,2]
[426090233,1782143440000,-1681.74129076,0.00020799,2]
[426090234,1782143440000,-1681.74129076,0.00020799,2]
[426090228,1782143440000,-1681.74129076,0.00020799,2]
[426090241,1782143440000,-1681.74129076,0.00020799,2]
[426090236,1782143440000,-1681.74129076,0.00020799,2]
[426090240,1782143440000,-1681.74129076,0.00020799,2]
[426090267,1782143440000,-170.14175403,0.00020808,2]
[426090244,1782143440000,-1816.28059402,0.00020799,2]
[426090246,1782143440000,-1816.28059402,0.00020799,2]
[426090248,1782143440000,-1816.28059402,0.00020799,2]
[426090251,1782143440000,-1816.28059402,0.00020799,2]
[426090259,1782143440000,-1816.28059402,0.00020799,2]
[426090255,1782143440000,-1816.28059402,0.00020799,2]
[426090253,1782143440000,-1816.28059402,0.00020799,2]
[426090257,1782143440000,-1816.28059402,0.00020799,2]
[426090261,1782143440000,-1816.28059402,0.00020799,2]
[426090263,1782143440000,-2011.8800426,0.00020799,2]
[426090271,1782143440000,-500.0,0.00020818,2]
[426090226,1782143440000,-1681.74129076,0.00020799,2]
[426090243,1782143440000,-1681.74129076,0.00020799,2]
[426090227,1782143440000,-1681.74129076,0.00020799,2]
[426090177,1782143440000,-500.0,0.00020544,2]
[426090223,1782143440000,-1681.74129076,0.00020799,2]
[426090175,1782143440000,-500.0,0.00020544,2]
[426090171,1782143440000,-500.0,0.00020544,2]
[426090173,1782143440000,-500.0,0.00020544,2]
[426090269,1782143440000,-500.0,0.00020818,2]
[426090183,1782143440000,-500.0,0.00020545,2]
[426090181,1782143440000,-500.0,0.00020545,2]
[426090184,1782143440000,-500.0,0.00020545,2]
[426090186,1782143440000,-500.0,0.00020545,2]
[426090179,1782143440000,-500.0,0.00020544,2]
[426090188,1782143440000,-500.0,0.00020545,2]
[426090192,1782143440000,-500.0,0.00020545,2]
[426090190,1782143440000,-500.0,0.00020545,2]
[426090196,1782143440000,-500.0,0.00020545,2]
[426090194,1782143440000,-194.72503733,0.00020545,2]
[426090205,1782143440000,-945.07,0.00020545,2]
[426090207,1782143440000,-500.0,0.00020545,2]
[426090210,1782143440000,-571.03,0.00020546,2]
[426090211,1782143440000,-187.78667641,0.00020634,2]
[426090199,1782143440000,-500.0,0.00020545,2]
[426090201,1782143440000,-500.0,0.00020545,2]
[426090203,1782143440000,-500.0,0.00020545,2]
[426090215,1782143440000,-1703.97191452,0.000207,2]
[426090213,1782143440000,-163.97880347,0.000207,2]
[426090222,1782143440000,-1681.74129076,0.00020799,2]
[426090218,1782143440000,-51486.3877154,0.000207,2]
[426090219,1782143440000,-152.48099,0.000207,2]
[426090221,1782143440000,-228.51201777,0.00020799,2]
[426090225,1782143440000,-1681.74129076,0.00020799,2]
[426090273,1782143440000,-500.0,0.00020818,2]
[426090265,1782143440000,-157.22281961,0.00020808,2]
[426090278,1782143440000,-500.0,0.00020818,2]
[426090338,1782143440000,-1842.0,0.00020844,2]
[426090342,1782143440000,-958.0,0.00020844,2]
[426090346,1782143440000,-193.9,0.000209,2]
[426090344,1782143440000,-1703.97191452,0.000209,2]
[426090362,1782143440000,-168.605656,0.00021241,2]
[426090350,1782143440000,-500.0,0.00021092,2]
[426090354,1782143440000,-531.9,0.00021092,2]
[426090352,1782143440000,-500.0,0.00021092,2]
[426090348,1782143440000,-207.0,0.00021,2]
[426090358,1782143440000,-945.07,0.00021093,2]
[426090360,1782143440000,-1703.97191452,0.000212,2]
[426090394,1782143440000,-1703.97191452,0.000216,2]
[426090364,1782143440000,-300.0,0.0002126,10]
[426090340,1782143440000,-1419.0,0.00020844,2]
[426090366,1782143440000,-300.0,0.0002126,10]
[426090382,1782143440000,-257.92,0.00021366,2]
[426090386,1782143440000,-1703.97191452,0.000214,2]
[426090384,1782143440000,-945.07,0.00021367,2]
[426090368,1782143440000,-300.0,0.0002126,10]
[426090388,1782143440000,-158.0,0.00021446,30]
[426090372,1782143440000,-676.2196432,0.00021264,2]
[426090376,1782143440000,-157.22281961,0.00021356,2]
[426090378,1782143440000,-500.0,0.00021366,2]
[426090370,1782143440000,-300.0,0.0002126,10]
[426090390,1782143440000,-207.0,0.00021446,30]
[426090374,1782143440000,-162.0,0.000213,10]
[426090392,1782143440000,-165.1946447,0.000215,25]
[426090276,1782143440000,-500.0,0.00020818,2]
[426090380,1782143440000,-500.0,0.00021366,2]
[426090330,1782143440000,-500.0,0.00020819,2]
[426090356,1782143440000,-500.0,0.00021092,2]
[426090332,1782143440000,-361.22731736,0.00020819,2]
[426090336,1782143440000,-500.0,0.00020819,2]
[426090286,1782143440000,-500.0,0.00020818,2]
[426090282,1782143440000,-500.0,0.00020818,2]
[426090284,1782143440000,-500.0,0.00020818,2]
[426090288,1782143440000,-500.0,0.00020818,2]
[426090292,1782143440000,-500.0,0.00020818,2]
[426090290,1782143440000,-563.42150203,0.00020818,2]
[426090293,1782143440000,-500.0,0.00020818,2]
[426090295,1782143440000,-500.0,0.00020818,2]
[426090303,1782143440000,-500.0,0.00020818,2]
[426090299,1782143440000,-500.0,0.00020818,2]
[426090313,1782143440000,-500.0,0.00020819,2]
[426090301,1782143440000,-500.0,0.00020818,2]
[426090280,1782143440000,-500.0,0.00020818,2]
[426090317,1782143440000,-500.0,0.00020819,2]
[426090297,1782143440000,-500.0,0.00020818,2]
[426090328,1782143440000,-500.0,0.00020819,2]
[426090327,1782143440000,-500.0,0.00020819,2]
[426090319,1782143440000,-519.75478219,0.00020819,2]
[426090323,1782143440000,-460.0,0.00020819,2]
[426090325,1782143440000,-500.0,0.00020819,2]
[426090334,1782143440000,-945.07,0.00020819,2]
[426090307,1782143440000,-528.47,0.00020818,2]
[426090309,1782143440000,-500.0,0.00020818,2]
[426090305,1782143440000,-500.0,0.00020818,2]
[426090311,1782143440000,-500.0,0.00020818,2]
[426090315,1782143440000,-500.0,0.00020819,2]
[426090320,1782143440000,-500.0,0.00020819,2]
[426090487,1782143441000,-500.0,0.000219,7]
[426090479,1782143441000,-500.0,0.000219,7]
[426090475,1782143441000,-500.0,0.000219,7]
[426090473,1782143441000,-500.0,0.000219,7]
[426090471,1782143441000,-500.0,0.000219,7]
[426090467,1782143441000,-1000.0,0.00021899,2]
[426090465,1782143441000,-1000.0,0.00021899,2]
[426090463,1782143441000,-1000.0,0.00021899,2]
[426090461,1782143441000,-1000.0,0.00021899,2]
[426090477,1782143441000,-500.0,0.000219,7]
[426090459,1782143441000,-1000.0,0.00021899,2]
[426090469,1782143441000,-180.0,0.000219,2]
[426090483,1782143441000,-500.0,0.000219,7]
[426090499,1782143441000,-500.0,0.000219,7]
[426090481,1782143441000,-500.0,0.000219,7]
[426090489,1782143441000,-500.0,0.000219,7]
[426090493,1782143441000,-500.0,0.000219,7]
[426090495,1782143441000,-500.0,0.000219,7]
[426090497,1782143441000,-500.0,0.000219,7]
[426090502,1782143441000,-500.0,0.000219,7]
[426090491,1782143441000,-500.0,0.000219,7]
[426090503,1782143441000,-500.0,0.000219,7]